fUSD/lending_fUSD_20251001
["ID","MTS","AMOUNT","RATE_DAILY","PERIOD"]
[388658094,1759307433597,-151.0,0.00019339,2]
[388658095,1759307433606,-151.0,0.00019339,2]
[388658096,1759307433615,-151.0,0.00019339,2]
[388658097,1759307433627,-151.0,0.00019339,2]
[388658098,1759307433639,-151.0,0.00019339,2]
[388658099,1759307433649,-151.0,0.00019339,2]
[388658100,1759307433658,-243.066624,0.00019339,2]
[388658101,1759307433668,-155.935036,0.00019339,2]
[388658102,1759307433677,-466.541836,0.00019339,2]
[388658103,1759307433687,-466.541836,0.00019339,2]
[388658104,1759307433696,-466.541836,0.00019339,2]
[388658105,1759307433708,-466.541836,0.00019339,2]
[388658106,1759307433717,-466.541836,0.00019339,2]
[388658107,1759307433726,-466.541836,0.00019339,2]
[388658108,1759307433735,-151.0,0.00019339,2]
[388658109,1759307433744,-151.0,0.00019339,2]
[388658110,1759307433753,-466.541836,0.00019339,2]
[388658111,1759307433763,-466.541836,0.00019339,2]
[388658112,1759307433774,-151.0,0.00019339,2]
[388658113,1759307433784,-151.0,0.00019339,2]
[388658114,1759307433793,-151.0,0.00019339,2]
[388658115,1759307433802,-151.0,0.00019339,2]
[388658116,1759307433811,-220.967797,0.00019339,2]
[388658117,1759307433820,-220.967797,0.00019339,2]
[388658118,1759307433829,-220.967797,0.00019339,2]
[388658119,1759307433838,-220.967797,0.00019339,2]
[388658120,1759307433847,-220.967797,0.00019339,2]
[388658121,1759307433855,-220.967797,0.00019339,2]
[388658122,1759307433866,-151.0,0.00019339,2]
[388658123,1759307433876,-220.967797,0.00019339,2]
[388658124,1759307433889,-150.99,0.00019339,2]
[388658125,1759307433898,-9460.65,0.00019339,2]
[388658126,1759307433907,-56342.75375244,0.00019339,2]
[388658127,1759307433920,-50602.77564796,0.00019339,2]
[388658128,1759307435195,-151.0,0.00019339,2]
[388658129,1759307435205,-220.967797,0.00019339,2]
[388658130,1759307435215,-151.0,0.00019339,2]
[388658131,1759307435225,-151.0,0.00019339,2]
[388658132,1759307435234,-151.0,0.00019339,2]
[388658133,1759307435244,-151.0,0.00019339,2]
[388658134,1759307435253,-61093.4005996,0.00019339,2]
[388658135,1759307435264,-299.99,0.00019339,7]
[388658137,1759307435274,-9333.73,0.00019339,2]
[388658138,1759307435284,-3126.34,0.00019339,2]
[388658139,1759307435293,-79662.6629649,0.00019339,2]
[388658140,1759307435313,-4104.74920543,0.00019339,2]
[388658141,1759307435324,-513.13091038,0.00019339,2]
[388658142,1759307435335,-408.22908962,0.00019339,2]
[388658143,1759307435348,-844.93412054,0.00019339,2]
[388658144,1759307435359,-508.28,0.00019339,2]
[388658145,1759307435370,-613.72,0.00019339,2]
[388658152,1759307435530,-151.0,0.00019339,2]
[388658154,1759307435539,-162.44235684,0.00019339,2]
[388658161,1759307435599,-519.61119662,0.00019339,2]
[388658281,1759307437385,-151.0,0.00019339,2]
[388658282,1759307437395,-151.0,0.00019339,2]
[388658283,1759307437404,-151.0,0.00019339,2]
[388658284,1759307437413,-151.0,0.00019339,2]
[388658285,1759307437423,-7704.68015567,0.00019339,2]
[388658286,1759307437432,-9999.99,0.00019339,2]
[388658287,1759307437442,-499.99,0.00019339,2]
[388658288,1759307437451,-9999.99,0.00019339,2]
[388658289,1759307437461,-6139.8337492,0.00019366,2]
[388658290,1759307437471,-16124.07124925,0.0001937,2]
[388658291,1759307437490,-544.4,0.0001937,2]
[388658292,1759307437596,-34540.72835331,0.0001937,2]
[388658436,1759307439361,-631.776535,0.00019339,2]
[388658438,1759307439371,-151.0,0.00019339,2]
[388658440,1759307439380,-1390.123465,0.0001937,2]
[388658451,1759307439471,-631.776535,0.00019339,2]
[388658452,1759307439481,-55924.402668,0.0001937,2]
[388658455,1759307439493,-463.72,0.0001937,2]
[388658465,1759307439582,-994.33185718,0.0001937,2]
[388658663,1759307442756,-151.0,0.00019339,2]
[388658664,1759307442765,-151.0,0.00019339,2]
[388658666,1759307442774,-631.776535,0.00019339,2]
[388658667,1759307442785,-125.20826486,0.00019339,2]
[388658679,1759307445402,-281.71167578,0.000189,2]
[388658680,1759307445412,-25.79173514,0.00019339,2]
[388658681,1759307445421,-631.776535,0.00019339,2]
[388658682,1759307445431,-151.0,0.00019339,2]
[388658683,1759307445440,-631.776535,0.00019339,2]
[388658684,1759307445449,-151.0,0.00019339,2]
[388658685,1759307445458,-631.776535,0.00019339,2]
[388658686,1759307445469,-151.0,0.00019339,2]
[388658687,1759307445479,-235.280815,0.00019339,2]
[388658688,1759307445489,-631.776535,0.00019339,2]
[388658689,1759307445498,-631.776535,0.00019339,2]
[388658690,1759307445508,-253.666486,0.00019339,2]
[388658691,1759307445527,-3114.44116796,0.0001937,2]
[388658692,1759307445538,-2464.9303746,0.0001937,2]
[388658693,1759307445547,-151.0,0.0001937,2]
[388658694,1759307445557,-151.0,0.0001937,2]
[388658695,1759307445567,-151.0,0.0001937,2]
[388658696,1759307445576,-151.0,0.0001937,2]
[388658697,1759307445585,-151.0,0.0001937,2]
[388658698,1759307445595,-151.0,0.0001937,2]
[388658699,1759307445605,-294.131796,0.0001937,2]
[388658700,1759307445614,-151.0,0.0001937,2]
[388658701,1759307445625,-151.0,0.0001937,2]
[388658702,1759307445636,-25.16327452,0.0001937,2]
[388658703,1759307445671,-125.83672548,0.0001937,2]
[388658704,1759307445680,-151.0,0.0001937,2]
[388658705,1759307445691,-151.0,0.0001937,2]
[388658706,1759307445701,-151.0,0.0001937,2]
[388658707,1759307445711,-151.0,0.0001937,2]
[388658708,1759307445721,-151.0,0.0001937,2]
[388658709,1759307445730,-151.0,0.0001937,2]
[388658710,1759307445740,-151.0,0.0001937,2]
[388658711,1759307445749,-93.7864853,0.0001937,2]
[388658721,1759307598846,-154.06979346,0.0002,20]
[388658727,1759307815158,-873.7109,0.00016769,2]
[388658728,1759307842178,-3419.2847548,0.00017365,2]
[388658729,1759307842202,-1438.57343778,0.00017367,2]
[388658730,1759307842226,-142.14180742,0.00017382,2]
[388658739,1759307998986,333.11,0.00021945,30]
[388658742,1759308133949,164.5,8.955e-05,2]
[388658743,1759308134155,164.5,9.95e-05,2]
[388658744,1759308134321,164.5,0.00010946,2]
[388658745,1759308134525,164.5,0.00011941,2]
[388658746,1759308134880,164.5,0.00012936,2]
[388658747,1759308134995,164.5,0.00013931,2]
[388658748,1759308135354,164.5,0.00014926,2]
[388658749,1759308135774,164.5,0.00015921,2]
[388658753,1759308562467,-502.64297993,0.00024746,25]
[388658754,1759308597279,155.93,0.000247,25]
[388658756,1759308616250,1200.0,0.00015,3]
[388658757,1759308616273,104.0,0.00015,3]
[388658768,1759308631589,-627.68208494,0.00016831,2]
[388658769,1759308631602,-573.93583306,0.00016831,2]
[388658770,1759308631937,-164.5,0.00016916,2]
[388658771,1759308631948,-250.0,0.00016994,2]
[388658772,1759308631958,-2205.20326538,0.00017072,2]
[388658773,1759308631967,-176.52845435,0.00017128,2]
[388658774,1759308631978,-333.62595433,0.00017318,2]
[388658775,1759308631987,-580.72190915,0.00017379,2]
[388658776,1759308631996,-580.72190915,0.00017379,2]
[388658777,1759308632006,-580.72190915,0.00017381,2]
[388658778,1759308632015,-53.60470221,0.00017382,2]
[388658779,1759308632024,-580.72190915,0.00017386,2]
[388658780,1759308632033,-3419.2847548,0.00017391,2]
[388658781,1759308632047,-2212.020978,0.00017392,2]
[388658782,1759308632058,-1438.57343778,0.00017395,2]
[388658783,1759308632068,-1438.57343778,0.00017402,2]
[388658784,1759308632080,-1438.57343778,0.00017403,2]
[388658786,1759308632090,-3419.2847548,0.00017408,2]
[388658788,1759308632099,-580.72190915,0.00017411,2]
[388658790,1759308632109,-2212.020978,0.00017412,2]
[388658792,1759308632118,-195.74650963,0.0001742,2]
[388658794,1759308632129,-2212.020978,0.00017433,2]
[388658796,1759308632139,-195.74650963,0.00017434,2]
[388658798,1759308632149,-2212.020978,0.00017436,2]
[388658800,1759308632158,-3419.2847548,0.00017452,2]
[388658803,1759308632167,-2212.020978,0.00017466,2]
[388658806,1759308632180,-195.74650963,0.00017471,2]
[388658808,1759308632190,-195.74650963,0.00017476,2]
[388658810,1759308632199,-1438.57343778,0.00017482,2]
[388658811,1759308632209,-3419.2847548,0.00017489,2]
[388658813,1759308632221,-150.0,0.0001755,2]
[388658815,1759308632232,-194.0,0.00017659,2]
[388658817,1759308632241,-500.0,0.00017659,2]
[388658819,1759308632250,-300.0,0.00017659,2]
[388658821,1759308632259,-1200.0,0.00017659,2]
[388658823,1759308632271,-300.0,0.00017659,2]
[388658825,1759308632280,-300.0,0.00017659,2]
[388658827,1759308632297,-5696.48,0.0001766,2]
[388658829,1759308632308,-256.05,0.00017683,2]
[388658832,1759308632318,-1000.0,0.00017754,2]
[388658833,1759308632328,-198.03,0.00017754,2]
[388658836,1759308632339,-2934.47,0.00017755,2]
[388658838,1759308632348,-164.0,0.000178,2]
[388658840,1759308632361,-176.52845433,0.0001782,2]
[388658842,1759308632371,-539.0,0.00017834,2]
[388658844,1759308632380,-201.88271563,0.00017835,2]
[388658846,1759308632390,-200.0,0.00017835,2]
[388658848,1759308632399,-200.0,0.00017835,2]
[388658850,1759308632409,-151.0,0.00017835,2]
[388658852,1759308632418,-151.0,0.00017835,2]
[388658854,1759308632428,-151.0,0.00017835,2]
[388658856,1759308632438,-151.0,0.00017835,2]
[388658858,1759308632448,-151.0,0.00017835,2]
[388658860,1759308632458,-266.4064294,0.00017835,2]
[388658862,1759308632467,-151.0,0.00017835,2]
[388658864,1759308632477,-151.0,0.00017835,2]
[388658866,1759308632486,-151.0,0.00017835,2]
[388658867,1759308632496,-151.0,0.00017835,2]
[388658870,1759308632506,-151.0,0.00017835,2]
[388658871,1759308632515,-151.0,0.00017835,2]
[388658873,1759308632524,-151.0,0.00017835,2]
[388658875,1759308632534,-215.74301913,0.00017835,2]
[388658878,1759308632551,-250.0,0.0001784,2]
[388658879,1759308632560,-164.5,0.00017911,2]
[388658881,1759308632569,-4129.63826842,0.00017963,2]
[388658885,1759308632600,-426.70360136,0.00017963,2]
[388658890,1759308632644,-1845.14304322,0.00017963,2]
[388658893,1759308632654,-500.0,0.00017963,2]
[388658894,1759308632665,-240.65537435,0.00017963,2]
[388658897,1759308632675,-173.12784222,0.00017963,2]
[388658899,1759308632687,-326.87215778,0.00017963,2]
[388658901,1759308632696,-476.63784222,0.00017963,2]
[388658910,1759308632995,-23.36215778,0.00017963,2]
[388658911,1759308633006,-500.0,0.00017963,2]
[388658912,1759308633015,-143.2128422,0.00017963,2]
[388658913,1759308633027,-356.7871578,0.00017963,2]
[388658914,1759308633037,-500.0,0.00017963,2]
[388658915,1759308633053,-500.0,0.00017963,2]
[388658916,1759308633063,-322.6107,0.00017963,2]
[388658917,1759308633073,-500.0,0.00017963,2]
[388658918,1759308633083,-500.0,0.00017963,2]
[388658919,1759308633092,-556.65833547,0.00017963,2]
[388658920,1759308633103,-500.0,0.00017963,2]
[388658921,1759308633112,-500.0,0.00017963,2]
[388658922,1759308633122,-500.0,0.00017963,2]
[388658923,1759308633132,-500.0,0.00017963,2]
[388658924,1759308633142,-500.0,0.00017963,2]
[388658925,1759308633152,-500.0,0.00017963,2]
[388658926,1759308633162,-500.0,0.00017963,2]
[388658927,1759308633172,-500.0,0.00017963,2]
[388658928,1759308633185,-500.0,0.00017963,2]
[388658929,1759308633195,-239.84119403,0.00017963,2]
[388658930,1759308633205,-500.0,0.00017963,2]
[388658931,1759308633215,-500.0,0.00017963,2]
[388658932,1759308633229,-500.0,0.00017963,2]
[388658933,1759308633239,-500.0,0.00017963,2]
[388658934,1759308633249,-500.0,0.00017963,2]
[388658935,1759308633258,-500.0,0.00017963,2]
[388658936,1759308633267,-341.83629933,0.00017963,2]
[388658937,1759308633277,-500.0,0.00017963,2]
[388658938,1759308633287,-500.0,0.00017963,2]
[388658939,1759308633301,-500.0,0.00017963,2]
[388658940,1759308633311,-500.0,0.00017963,2]
[388658941,1759308633320,-331.11019284,0.00017963,2]
[388658942,1759308633330,-997.22710392,0.00017976,2]
[388658943,1759308633340,-1228.53,0.00017985,2]
[388658944,1759308633350,-2122.86,0.0001799,2]
[388658945,1759308633360,-178.58955588,0.00018,7]
[388658946,1759308633369,-375.0,0.00018179,2]
[388658947,1759308633379,-151.07,0.00018215,2]
[388658948,1759308633389,-2751.0,0.00018284,2]
[388658949,1759308633398,-341.44,0.00018313,2]
[388658950,1759308633408,-375.0,0.00018316,2]
[388658951,1759308633418,-489.76,0.00018391,2]
[388658952,1759308633428,-176.52845433,0.00018512,2]
[388658953,1759308633439,-9999.99,0.00018533,2]
[388658954,1759308633448,-1687.72,0.00018533,2]
[388658955,1759308633458,-2500.0,0.00018607,2]
[388658956,1759308633468,-250.0,0.00018607,2]
[388658957,1759308633477,-1800.0,0.00018607,2]
[388658958,1759308633487,-300.0,0.00018607,2]
[388658959,1759308633496,-300.0,0.00018607,2]
[388658960,1759308633505,-151.0,0.00018608,2]
[388658961,1759308633515,-2987.166,0.00018611,2]
[388658962,1759308633525,-247.037,0.00018611,2]
[388658963,1759308633534,-668.88,0.0001863,2]
[388658964,1759308633548,-185.18,0.00018922,2]
[388658965,1759308633558,-500.0,0.00018969,2]
[388658966,1759308633568,-500.0,0.00018969,2]
[388658967,1759308633577,-500.0,0.00018969,2]
[388658968,1759308633587,-346.88523222,0.00018969,2]
[388658969,1759308633597,-500.0,0.00018969,2]
[388658970,1759308633607,-500.0,0.00018969,2]
[388658971,1759308633616,-500.0,0.00018969,2]
[388658972,1759308633626,-500.0,0.00018969,2]
[388658973,1759308633635,-500.0,0.00018969,2]
[388658974,1759308633645,-500.0,0.00018969,2]
[388658975,1759308633654,-527.38729998,0.00018969,2]
[388658976,1759308633663,-500.0,0.00018969,2]
[388658977,1759308633673,-500.0,0.00018969,2]
[388658978,1759308633682,-500.0,0.00018969,2]
[388658979,1759308633691,-500.0,0.00018969,2]
[388658980,1759308633700,-500.0,0.00018969,2]
[388658981,1759308633710,-500.0,0.00018969,2]
[388658982,1759308633719,-500.0,0.00018969,2]
[388658983,1759308633728,-500.0,0.00018969,2]
[388658984,1759308633739,-500.0,0.00018969,2]
[388658985,1759308633749,-592.21738533,0.00018969,2]
[388658986,1759308633758,-500.0,0.00018969,2]
[388658987,1759308633768,-2778.12003537,0.0001897,2]
[388658988,1759308633800,-3904.8056581,0.0001897,2]
[388658989,1759308633827,-10018.35706302,0.0001897,2]
[388658990,1759308633918,-1298.71724351,0.0001897,2]
[388658991,1759308633929,-160.0,0.0001898,2]
[388658992,1759308633941,-1486.9520932,0.00018995,2]
[388658993,1759308633953,-171.6,0.00019013,2]
[388658994,1759308633969,-171.9,0.00019015,2]
[388658995,1759308633982,-151.05,0.00019041,2]
[388658996,1759308633994,-887.77907655,0.0001915,2]
[388658997,1759308634007,-700.0,0.0001916,2]
[388658998,1759308634019,-162.174,0.00019178,2]
[388658999,1759308634030,-4000.0,0.00019178,2]
[388659000,1759308634050,-618.37612113,0.000192,2]
[388659001,1759308634070,-200.0,0.00019225,2]
[388659002,1759308634083,-6036.52486645,0.00019242,2]
[388659003,1759308634095,-401.4,0.00019251,3]
[388659004,1759308634107,-151.0,0.00019258,2]
[388659005,1759308634121,-52078.6307882,0.00019261,2]
[388659006,1759308634133,-24248.1646791,0.00019261,2]
[388659007,1759308634145,-151.0,0.00019261,2]
[388659008,1759308634158,-151.0,0.00019261,2]
[388659009,1759308634175,-170.825149,0.00019261,2]
[388659010,1759308634194,-193.496987,0.00019261,2]
[388659011,1759308634206,-151.0,0.00019261,2]
[388659012,1759308634219,-151.0,0.00019261,2]
[388659013,1759308634232,-279.925102,0.00019261,2]
[388659014,1759308634246,-279.925102,0.00019261,2]
[388659015,1759308634259,-279.925102,0.00019261,2]
[388659016,1759308634276,-279.925102,0.00019261,2]
[388659017,1759308634287,-160.0,0.00019261,2]
[388659018,1759308634307,-160.0,0.00019261,2]
[388659019,1759308634321,-160.0,0.00019261,2]
[388659020,1759308634333,-160.0,0.00019261,2]
[388659021,1759308634344,-160.0,0.00019261,2]
[388659022,1759308634355,-160.0,0.00019261,2]
[388659023,1759308634365,-160.0,0.00019261,2]
[388659024,1759308634377,-160.0,0.00019261,2]
[388659025,1759308634387,-160.0,0.00019261,2]
[388659026,1759308634396,-160.0,0.00019261,2]
[388659027,1759308634406,-160.0,0.00019261,2]
[388659028,1759308634416,-160.0,0.00019261,2]
[388659029,1759308634425,-160.0,0.00019261,2]
[388659030,1759308634436,-160.0,0.00019261,2]
[388659031,1759308634446,-160.0,0.00019261,2]
[388659032,1759308634456,-160.0,0.00019261,2]
[388659033,1759308634466,-160.0,0.00019261,2]
[388659034,1759308634477,-160.0,0.00019261,2]
[388659035,1759308634487,-160.0,0.00019261,2]
[388659036,1759308634496,-160.0,0.00019261,2]
[388659037,1759308634505,-160.0,0.00019261,2]
[388659038,1759308634515,-160.0,0.00019261,2]
[388659039,1759308634524,-50.90979056,0.00019261,2]
[388659040,1759308634536,-109.09020944,0.00019261,2]
[388659041,1759308634551,-160.0,0.00019261,2]
[388659042,1759308634560,-160.0,0.00019261,2]
[388659043,1759308634570,-160.0,0.00019261,2]
[388659044,1759308634580,-160.0,0.00019261,2]
[388659045,1759308634590,-160.0,0.00019261,2]
[388659046,1759308634599,-160.0,0.00019261,2]
[388659047,1759308634609,-160.0,0.00019261,2]
[388659048,1759308634619,-160.0,0.00019261,2]
[388659049,1759308634629,-160.0,0.00019261,2]
[388659050,1759308634639,-160.0,0.00019261,2]
[388659051,1759308634649,-160.0,0.00019261,2]
[388659052,1759308634659,-160.0,0.00019261,2]
[388659053,1759308634669,-160.0,0.00019261,2]
[388659054,1759308634678,-160.0,0.00019261,2]
[388659055,1759308634689,-172.851572,0.00019261,2]
[388659056,1759308634698,-420.0,0.00019275,2]
[388659057,1759308634707,-206.0,0.00019275,2]
[388659058,1759308634717,-1000.0,0.000193,2]
[388659059,1759308634726,-2962.17383458,0.000193,2]
[388659060,1759308634736,-237.06704238,0.000193,2]
[388659061,1759308634745,-154.0,0.000193,3]
[388659062,1759308634755,-154.0,0.000193,3]
[388659063,1759308634764,-169.98723126,0.000193,2]
[388659064,1759308634774,-905.42137057,0.00019312,2]
[388659065,1759308634786,-14783.87792943,0.00019312,2]
[388659066,1759308634800,-500.0,0.0001932,2]
[388659067,1759308634809,-657.58209849,0.00019338,2]
[388659068,1759308634820,-483.12945144,0.00019338,2]
[388659069,1759308634830,-6178.22,0.00019339,2]
[388659070,1759308634840,-999.99,0.00019339,2]
[388659071,1759308634849,-4591.84,0.00019339,2]
[388659072,1759308634858,-150.99,0.00019339,2]
[388659073,1759308634867,-150.99,0.00019339,2]
[388659074,1759308634877,-10000.0,0.0001936,5]
[388659075,1759308634887,-151.0,0.0001936,2]
[388659076,1759308634897,-151.0,0.0001936,2]
[388659077,1759308634907,-151.0,0.0001936,2]
[388659078,1759308634917,-151.0,0.0001936,2]
[388659079,1759308634926,-151.0,0.0001936,2]
[388659080,1759308634937,-151.0,0.0001936,2]
[388659081,1759308634947,-151.0,0.0001936,2]
[388659082,1759308634957,-151.0,0.0001936,2]
[388659083,1759308634967,-151.0,0.0001936,2]
[388659084,1759308634977,-151.0,0.0001936,2]
[388659085,1759308634987,-151.0,0.0001936,2]
[388659086,1759308634997,-151.0,0.0001936,2]
[388659087,1759308635007,-151.0,0.0001936,2]
[388659088,1759308635016,-151.0,0.0001936,2]
[388659089,1759308635026,-151.0,0.0001936,2]
[388659090,1759308635035,-170.382903,0.0001936,2]
[388659091,1759308635049,-151.0,0.0001936,2]
[388659092,1759308635058,-151.0,0.0001936,2]
[388659093,1759308635067,-208.213515,0.0001936,2]
[388659094,1759308635077,-151.0,0.0001936,2]
[388659095,1759308635086,-151.0,0.0001936,2]
[388659096,1759308635096,-151.0,0.0001936,2]
[388659097,1759308635105,-151.0,0.0001936,2]
[388659098,1759308635115,-151.0,0.0001936,2]
[388659099,1759308635124,-151.0,0.0001936,2]
[388659100,1759308635133,-151.0,0.0001936,2]
[388659101,1759308635143,-151.0,0.0001936,2]
[388659102,1759308635152,-151.0,0.0001936,2]
[388659103,1759308635162,-151.0,0.0001936,2]
[388659104,1759308635171,-151.0,0.0001936,2]
[388659105,1759308635184,-151.0,0.0001936,2]
[388659106,1759308635194,-151.0,0.0001936,2]
[388659107,1759308635206,-151.0,0.0001936,2]
[388659108,1759308635215,-151.0,0.0001936,2]
[388659109,1759308635229,-151.0,0.0001936,2]
[388659110,1759308635238,-151.0,0.0001936,2]
[388659111,1759308635247,-151.0,0.0001936,2]
[388659112,1759308635257,-151.0,0.0001936,2]
[388659113,1759308635267,-151.0,0.0001936,2]
[388659114,1759308635277,-151.0,0.0001936,2]
[388659115,1759308635287,-151.0,0.0001936,2]
[388659116,1759308635302,-151.0,0.0001936,2]
[388659117,1759308635311,-151.0,0.0001936,2]
[388659118,1759308635321,-163.585926,0.0001936,2]
[388659119,1759308635330,-151.0,0.0001936,2]
[388659120,1759308635339,-341.159329,0.0001936,2]
[388659121,1759308635349,-151.0,0.0001936,2]
[388659122,1759308635358,-341.159329,0.0001936,2]
[388659123,1759308635367,-151.0,0.0001936,2]
[388659124,1759308635378,-341.159329,0.0001936,2]
[388659125,1759308635389,-341.159329,0.0001936,2]
[388659126,1759308635399,-151.0,0.0001936,2]
[388659127,1759308635409,-151.0,0.0001936,2]
[388659128,1759308635419,-549.959264,0.0001936,2]
[388659129,1759308635429,-549.959264,0.0001936,2]
[388659130,1759308635438,-549.959264,0.0001936,2]
[388659131,1759308635448,-549.959264,0.0001936,2]
[388659132,1759308635469,-432.797293,0.0001936,2]
[388659133,1759308635478,-432.797293,0.0001936,2]
[388659134,1759308635488,-432.797293,0.0001936,2]
[388659135,1759308635498,-432.797293,0.0001936,2]
[388659136,1759308635507,-151.0,0.0001936,2]
[388659137,1759308635517,-151.0,0.0001936,2]
[388659138,1759308635526,-151.0,0.0001936,2]
[388659139,1759308635536,-151.0,0.0001936,2]
[388659140,1759308635550,-151.0,0.0001936,2]
[388659141,1759308635559,-300.787934,0.0001936,2]
[388659142,1759308635569,-151.0,0.0001936,2]
[388659143,1759308635580,-151.0,0.0001936,2]
[388659144,1759308635590,-151.0,0.0001936,2]
[388659145,1759308635600,-297.448522,0.0001936,2]
[388659146,1759308635610,-151.0,0.0001936,2]
[388659147,1759308635619,-151.0,0.0001936,2]
[388659148,1759308635628,-3618.41023512,0.00019366,2]
[388659149,1759308635641,-1557.77719048,0.00019366,2]
[388659150,1759308635650,-151.0,0.00019366,2]
[388659151,1759308635659,-287.373877,0.00019366,2]
[388659152,1759308635668,-151.0,0.00019366,2]
[388659153,1759308635677,-151.0,0.00019366,2]
[388659154,1759308635687,-151.0,0.00019366,2]
[388659155,1759308635696,-151.0,0.00019366,2]
[388659156,1759308635705,-151.0,0.00019366,2]
[388659157,1759308635717,-151.0,0.00019366,2]
[388659158,1759308635726,-151.0,0.00019366,2]
[388659159,1759308635735,-151.0,0.00019366,2]
[388659160,1759308635745,-151.0,0.00019366,2]
[388659161,1759308635754,-151.0,0.00019366,2]
[388659162,1759308635763,-151.0,0.00019366,2]
[388659163,1759308635774,-151.0,0.00019366,2]
[388659164,1759308635783,-151.0,0.00019366,2]
[388659165,1759308635793,-151.0,0.00019366,2]
[388659166,1759308635807,-151.0,0.00019366,2]
[388659167,1759308635816,-151.0,0.00019366,2]
[388659168,1759308635825,-151.0,0.00019366,2]
[388659169,1759308635835,-218.398325,0.00019366,2]
[388659170,1759308635844,-151.0,0.00019366,2]
[388659171,1759308635854,-151.0,0.00019366,2]
[388659172,1759308635863,-151.0,0.00019366,2]
[388659173,1759308635872,-218.598657,0.00019366,2]
[388659174,1759308635882,-151.0,0.00019366,2]
[388659175,1759308635892,-151.0,0.00019366,2]
[388659176,1759308635901,-151.0,0.00019366,2]
[388659177,1759308635910,-151.0,0.00019366,2]
[388659178,1759308635920,-151.0,0.00019366,2]
[388659179,1759308635929,-151.0,0.00019366,2]
[388659180,1759308635938,-251.066568,0.00019366,2]
[388659181,1759308635948,-251.066568,0.00019366,2]
[388659182,1759308635958,-151.0,0.00019366,2]
[388659183,1759308635968,-251.066568,0.00019366,2]
[388659184,1759308635977,-251.066568,0.00019366,2]
[388659185,1759308635987,-151.0,0.00019366,2]
[388659186,1759308635997,-151.0,0.00019366,2]
[388659187,1759308636006,-151.0,0.00019366,2]
[388659188,1759308636015,-151.0,0.00019366,2]
[388659189,1759308636024,-151.0,0.00019366,2]
[388659190,1759308636034,-151.0,0.00019366,2]
[388659191,1759308636048,-151.0,0.00019366,2]
[388659192,1759308636058,-151.0,0.00019366,2]
[388659193,1759308636068,-151.0,0.00019366,2]
[388659194,1759308636078,-151.0,0.00019366,2]
[388659195,1759308636087,-151.0,0.00019366,2]
[388659196,1759308636097,-279.925102,0.00019366,2]
[388659197,1759308636107,-279.925102,0.00019366,2]
[388659198,1759308636116,-279.925102,0.00019366,2]
[388659199,1759308636125,-279.925102,0.00019366,2]
[388659200,1759308636134,-2169.78823,0.0001937,2]
[388659201,1759308636143,-1000.0,0.0001937,2]
[388659202,1759308636153,-804.8491909,0.0001937,2]
[388659203,1759308636162,-151.0,0.0001937,2]
[388659204,1759308636171,-153.00981254,0.0001937,2]
[388659205,1759308636184,-1680.0,0.0001937,2]
[388659206,1759308636194,-12877.68843008,0.000194,3]
[388659207,1759308636206,-1153.6,0.000194,3]
[388659316,1759308639349,-470.37833483,0.00017409,2]
[388659318,1759308639362,-116.48984802,0.00018612,2]